[Event "Titled Tuesday Blitz January 17 Late 2023"]
[White "Eljanov, Pavel"]
[Black "Baskakov, Egor"]
[WhiteFideId "14102951"]
[BlackFideId "24197866"]
[WhiteElo "2705"]
[BlackElo "2215"]
[Result "1-0"]
[Round "11"]
[TimeControl "180+2"]
[Date "2023.01.17"]
[WhiteClock "0:00:39"]
[BlackClock "0:00:24"]

1. d4 {[%clk 0:03:00]}  Nf6 {[%clk 0:02:59]} 2. c4 {[%clk 0:03:00]}  e6 {[%clk 0:03:00]} 3. Nc3 {[%clk 0:03:00]}  d5 {[%clk 0:03:01]} 4. cxd5 {[%clk 0:03:00]}  Nxd5 {[%clk 0:03:02]} 5. e4 {[%clk 0:02:58]}  Nxc3 {[%clk 0:03:02]} 6. bxc3 {[%clk 0:02:59]}  b6 {[%clk 0:03:03]} 7. Nf3 {[%clk 0:02:58]}  Bb7 {[%clk 0:03:03]} 8. Bd3 {[%clk 0:02:58]}  Nd7 {[%clk 0:03:03]} 9. O-O {[%clk 0:02:58]}  Be7 {[%clk 0:03:04]} 10. a4 {[%clk 0:02:54]}  c5 {[%clk 0:03:03]} 11. a5 {[%clk 0:02:53]}  cxd4 {[%clk 0:03:03]} 12. a6 {[%clk 0:02:49]}  Bc6 {[%clk 0:03:03]} 13. cxd4 {[%clk 0:02:49]}  O-O {[%clk 0:03:03]} 14. Bb2 {[%clk 0:02:46]}  Rc8 {[%clk 0:03:03]} 15. Qe2 {[%clk 0:02:42]}  Bd6 {[%clk 0:03:00]} 16. h4 {[%clk 0:02:27]}  h6 {[%clk 0:02:59]} 17. Rad1 {[%clk 0:02:18]}  Re8 {[%clk 0:02:56]} 18. Bb1 {[%clk 0:02:12]}  Ba4 {[%clk 0:02:50]} 19. Rc1 {[%clk 0:02:11]}  Qe7 {[%clk 0:02:44]} 20. e5 {[%clk 0:02:04]}  Bb8 {[%clk 0:02:44]} 21. Qe4 {[%clk 0:01:57]}  Nf8 {[%clk 0:02:43]} 22. d5 {[%clk 0:01:57]}  Bb5 {[%clk 0:02:32]} 23. d6 {[%clk 0:01:57]}  Qd7 {[%clk 0:02:31]} 24. Bd3 {[%clk 0:01:57]}  Ng6 {[%clk 0:02:26]} 25. g3 {[%clk 0:01:43]}  Nf8 {[%clk 0:02:15]} 26. Nd4 {[%clk 0:01:36]}  Bxd3 {[%clk 0:02:14]} 27. Qxd3 {[%clk 0:01:36]}  Rc5 {[%clk 0:02:02]} 28. Rxc5 {[%clk 0:01:31]}  bxc5 {[%clk 0:02:03]} 29. Nb3 {[%clk 0:01:31]}  Rc8 {[%clk 0:01:58]} 30. Rc1 {[%clk 0:01:29]}  Qa4 {[%clk 0:01:36]} 31. Rxc5 {[%clk 0:01:24]}  Rd8 {[%clk 0:01:33]} 32. Nd4 {[%clk 0:01:16]}  Nd7 {[%clk 0:01:30]} 33. Rb5 {[%clk 0:01:07]}  Qxa6 {[%clk 0:01:29]} 34. Qb3 {[%clk 0:01:06]}  Nb6 {[%clk 0:01:19]} 35. Bc3 {[%clk 0:01:02]}  Qb7 {[%clk 0:01:06]} 36. Ba5 {[%clk 0:00:55]}  Qe4 {[%clk 0:01:06]} 37. Bxb6 {[%clk 0:00:54]}  axb6 {[%clk 0:01:07]} 38. Qe3 {[%clk 0:00:49]}  Qa8 {[%clk 0:01:07]} 39. Rb1 {[%clk 0:00:43]}  Qa2 {[%clk 0:01:06]} 40. Rc1 {[%clk 0:00:42]}  Rf8 {[%clk 0:00:47]} 41. Nc6 {[%clk 0:00:41]}  b5 {[%clk 0:00:32]} 42. d7 {[%clk 0:00:40]}  Qd5 {[%clk 0:00:24]} 43. Ne7+ {[%clk 0:00:39]} 1-0


[Site "https://www.chess.com"]

[Event "Titled Tuesday Blitz January 17 Late 2023"]
[White "Quispe Arteaga, Gabriel"]
[Black "Jobava, Baadur"]
[WhiteFideId "32059809"]
[BlackFideId "13601520"]
[WhiteElo "2381"]
[BlackElo "2578"]
[Result "1/2-1/2"]
[Round "11"]
[TimeControl "180+2"]
[Date "2023.01.17"]
[WhiteClock "0:00:08"]
[BlackClock "0:00:02"]

1. c4 {[%clk 0:03:00]}  g6 {[%clk 0:02:57]} 2. Nc3 {[%clk 0:02:59]}  Bg7 {[%clk 0:02:58]} 3. g3 {[%clk 0:02:59]}  e5 {[%clk 0:02:55]} 4. Bg2 {[%clk 0:02:59]}  Ne7 {[%clk 0:02:55]} 5. e4 {[%clk 0:03:00]}  O-O {[%clk 0:02:55]} 6. Nge2 {[%clk 0:03:00]}  d6 {[%clk 0:02:54]} 7. O-O {[%clk 0:03:00]}  Nbc6 {[%clk 0:02:55]} 8. d3 {[%clk 0:03:01]}  f5 {[%clk 0:02:55]} 9. f4 {[%clk 0:03:01]}  Kh8 {[%clk 0:02:54]} 10. Kh1 {[%clk 0:03:00]}  Be6 {[%clk 0:02:52]} 11. Be3 {[%clk 0:03:00]}  Qd7 {[%clk 0:02:53]} 12. Qd2 {[%clk 0:03:00]}  Rf7 {[%clk 0:02:53]} 13. Nd5 {[%clk 0:02:56]}  Raf8 {[%clk 0:02:52]} 14. fxe5 {[%clk 0:02:55]}  dxe5 {[%clk 0:02:51]} 15. Bh6 {[%clk 0:02:45]}  Bxh6 {[%clk 0:02:37]} 16. Qxh6 {[%clk 0:02:44]}  Ng8 {[%clk 0:02:35]} 17. Qe3 {[%clk 0:02:43]}  Nf6 {[%clk 0:02:32]} 18. Nxf6 {[%clk 0:00:56]}  Rxf6 {[%clk 0:02:30]} 19. Rad1 {[%clk 0:00:51]}  fxe4 {[%clk 0:01:43]} 20. Rxf6 {[%clk 0:00:51]}  Rxf6 {[%clk 0:01:44]} 21. Bxe4 {[%clk 0:00:51]}  Bg4 {[%clk 0:01:39]} 22. Kg1 {[%clk 0:00:51]}  Bxe2 {[%clk 0:01:22]} 23. Qxe2 {[%clk 0:00:52]}  Nd4 {[%clk 0:01:21]} 24. Qe3 {[%clk 0:00:52]}  c6 {[%clk 0:01:05]} 25. Bg2 {[%clk 0:00:40]}  Qd6 {[%clk 0:00:56]} 26. Rf1 {[%clk 0:00:33]}  Kg7 {[%clk 0:00:56]} 27. Rxf6 {[%clk 0:00:32]}  Qxf6 {[%clk 0:00:57]} 28. Be4 {[%clk 0:00:24]}  a5 {[%clk 0:00:53]} 29. b3 {[%clk 0:00:21]}  b5 {[%clk 0:00:48]} 30. cxb5 {[%clk 0:00:20]}  cxb5 {[%clk 0:00:49]} 31. Kg2 {[%clk 0:00:18]}  b4 {[%clk 0:00:49]} 32. Qc1 {[%clk 0:00:18]}  Qd6 {[%clk 0:00:34]} 33. Qc8 {[%clk 0:00:18]}  Ne2 {[%clk 0:00:22]} 34. Qb7+ {[%clk 0:00:17]}  Kh6 {[%clk 0:00:22]} 35. Qf7 {[%clk 0:00:16]}  Nc3 {[%clk 0:00:20]} 36. h4 {[%clk 0:00:11]}  Qd8 {[%clk 0:00:10]} 37. Kh3 {[%clk 0:00:10]}  Qc8+ {[%clk 0:00:08]} 38. g4 {[%clk 0:00:10]}  Nxe4 {[%clk 0:00:08]} 39. dxe4 {[%clk 0:00:08]}  Qc3+ {[%clk 0:00:08]} 40. Kg2 {[%clk 0:00:08]}  Qc2+ {[%clk 0:00:09]} 41. Kf3 {[%clk 0:00:08]}  Qd3+ {[%clk 0:00:09]} 42. Kf2 {[%clk 0:00:07]}  Qd2+ {[%clk 0:00:06]} 43. Kf3 {[%clk 0:00:08]}  Qd1+ {[%clk 0:00:06]} 44. Kg3 {[%clk 0:00:06]}  Qg1+ {[%clk 0:00:06]} 45. Kh3 {[%clk 0:00:05]}  Qe3+ {[%clk 0:00:06]} 46. Kh2 {[%clk 0:00:05]}  Qe2+ {[%clk 0:00:02]} 47. Kh3 {[%clk 0:00:06]}  Qd3+ {[%clk 0:00:02]} 48. Kh2 {[%clk 0:00:06]}  Qc2+ {[%clk 0:00:02]} 49. Kh3 {[%clk 0:00:06]}  Qd3+ {[%clk 0:00:02]} 50. Kh2 {[%clk 0:00:07]}  Qe2+ {[%clk 0:00:02]} 51. Kh3 {[%clk 0:00:07]}  Qe3+ {[%clk 0:00:02]} 52. Kh2 {[%clk 0:00:08]}  Qe2+ {[%clk 0:00:02]} 1/2-1/2


[Site "https://www.chess.com"]

[Event "Titled Tuesday Blitz January 17 Late 2023"]
[White "Sanal, Vahap"]
[Black "Hansen, Eric"]
[WhiteFideId "6300545"]
[BlackFideId "2606771"]
[WhiteElo "2600"]
[BlackElo "2609"]
[Result "1-0"]
[Round "11"]
[TimeControl "180+2"]
[Date "2023.01.17"]
[WhiteClock "0:01:07"]
[BlackClock "0:00:01"]

1. Nf3 {[%clk 0:02:59]}  d5 {[%clk 0:02:47]} 2. g3 {[%clk 0:02:59]}  c6 {[%clk 0:02:45]} 3. Bg2 {[%clk 0:02:59]}  Bg4 {[%clk 0:02:44]} 4. O-O {[%clk 0:03:00]}  Nd7 {[%clk 0:02:44]} 5. h3 {[%clk 0:03:01]}  Bh5 {[%clk 0:02:44]} 6. d4 {[%clk 0:03:01]}  e6 {[%clk 0:02:43]} 7. c4 {[%clk 0:03:02]}  Bd6 {[%clk 0:02:42]} 8. Nc3 {[%clk 0:02:56]}  Ngf6 {[%clk 0:02:41]} 9. cxd5 {[%clk 0:02:50]}  exd5 {[%clk 0:02:41]} 10. Nh4 {[%clk 0:02:50]}  O-O {[%clk 0:02:38]} 11. Qb3 {[%clk 0:02:42]}  Qb6 {[%clk 0:02:36]} 12. Qxb6 {[%clk 0:02:26]}  axb6 {[%clk 0:02:35]} 13. f4 {[%clk 0:02:27]}  b5 {[%clk 0:02:14]} 14. g4 {[%clk 0:02:23]}  b4 {[%clk 0:02:13]} 15. Nd1 {[%clk 0:02:21]}  Nxg4 {[%clk 0:02:12]} 16. hxg4 {[%clk 0:02:21]}  Bxg4 {[%clk 0:02:13]} 17. Bf3 {[%clk 0:02:10]}  f5 {[%clk 0:02:05]} 18. Ne3 {[%clk 0:02:03]}  h5 {[%clk 0:01:57]} 19. Ng6 {[%clk 0:02:03]}  Rf6 {[%clk 0:01:52]} 20. Ne5 {[%clk 0:02:03]}  Nf8 {[%clk 0:01:51]} 21. Bxg4 {[%clk 0:02:00]}  hxg4 {[%clk 0:01:49]} 22. Bd2 {[%clk 0:01:58]}  Ne6 {[%clk 0:01:47]} 23. Nc2 {[%clk 0:01:58]}  Rh6 {[%clk 0:01:27]} 24. Kg2 {[%clk 0:01:49]}  Ra4 {[%clk 0:01:12]} 25. b3 {[%clk 0:01:47]}  Ra6 {[%clk 0:01:03]} 26. Bxb4 {[%clk 0:01:46]}  Bxe5 {[%clk 0:00:45]} 27. dxe5 {[%clk 0:01:40]}  c5 {[%clk 0:00:45]} 28. Bd2 {[%clk 0:01:40]}  d4 {[%clk 0:00:46]} 29. Rh1 {[%clk 0:01:40]}  Rxh1 {[%clk 0:00:42]} 30. Kxh1 {[%clk 0:01:41]}  Kf7 {[%clk 0:00:32]} 31. e3 {[%clk 0:01:38]}  d3 {[%clk 0:00:19]} 32. Ne1 {[%clk 0:01:37]}  Ra8 {[%clk 0:00:19]} 33. Kg2 {[%clk 0:01:35]}  g5 {[%clk 0:00:18]} 34. a4 {[%clk 0:01:22]}  Rh8 {[%clk 0:00:14]} 35. Rd1 {[%clk 0:01:14]}  gxf4 {[%clk 0:00:06]} 36. exf4 {[%clk 0:01:14]}  Rh3 {[%clk 0:00:06]} 37. Bc1 {[%clk 0:01:15]}  Nd4 {[%clk 0:00:02]} 38. Rxd3 {[%clk 0:01:12]}  Rxd3 {[%clk 0:00:02]} 39. Nxd3 {[%clk 0:01:13]}  Nxb3 {[%clk 0:00:03]} 40. Ba3 {[%clk 0:01:11]}  b6 {[%clk 0:00:03]} 41. Nb2 {[%clk 0:01:10]}  Na5 {[%clk 0:00:01]} 42. Kg3 {[%clk 0:01:05]}  Ke6 {[%clk 0:00:01]} 43. Nd1 {[%clk 0:01:06]}  Nc4 {[%clk 0:00:01]} 44. Bc1 {[%clk 0:01:06]}  Kd5 {[%clk 0:00:01]} 45. Ne3+ {[%clk 0:01:06]}  Nxe3 {[%clk 0:00:01]} 46. Bxe3 {[%clk 0:01:07]} 1-0


[Site "https://www.chess.com"]

[Event "Titled Tuesday Blitz January 17 Late 2023"]
[White "Solon, Nathan"]
[Black "Megalios, Konstantinos"]
[WhiteFideId "2017229"]
[BlackFideId "4238044"]
[WhiteElo "2306"]
[BlackElo "2372"]
[Result "1/2-1/2"]
[Round "11"]
[TimeControl "180+2"]
[Date "2023.01.17"]
[WhiteClock "0:00:13"]
[BlackClock "0:00:12"]

1. Nf3 {[%clk 0:03:00]}  Nf6 {[%clk 0:02:54]} 2. g3 {[%clk 0:03:01]}  b6 {[%clk 0:02:52]} 3. Bg2 {[%clk 0:03:00]}  Bb7 {[%clk 0:02:53]} 4. O-O {[%clk 0:02:59]}  c5 {[%clk 0:02:46]} 5. c4 {[%clk 0:02:59]}  e6 {[%clk 0:02:46]} 6. Nc3 {[%clk 0:02:58]}  Be7 {[%clk 0:02:45]} 7. d4 {[%clk 0:02:58]}  cxd4 {[%clk 0:02:46]} 8. Qxd4 {[%clk 0:02:56]}  d6 {[%clk 0:02:45]} 9. b3 {[%clk 0:02:53]}  Nbd7 {[%clk 0:02:45]} 10. Bb2 {[%clk 0:02:52]}  a6 {[%clk 0:02:44]} 11. Rad1 {[%clk 0:02:51]}  O-O {[%clk 0:02:43]} 12. e4 {[%clk 0:02:50]}  Qc7 {[%clk 0:02:42]} 13. Rfe1 {[%clk 0:02:49]}  Rfe8 {[%clk 0:02:41]} 14. h3 {[%clk 0:02:47]}  Rac8 {[%clk 0:02:40]} 15. g4 {[%clk 0:02:45]}  Ne5 {[%clk 0:02:36]} 16. Nh2 {[%clk 0:02:20]}  Ng6 {[%clk 0:02:32]} 17. Ne2 {[%clk 0:02:00]}  Bf8 {[%clk 0:02:04]} 18. g5 {[%clk 0:01:53]}  Nd7 {[%clk 0:01:40]} 19. Ng4 {[%clk 0:01:51]}  Nde5 {[%clk 0:01:30]} 20. Ng3 {[%clk 0:01:23]}  Qc5 {[%clk 0:01:11]} 21. Nh5 {[%clk 0:01:19]}  Qxd4 {[%clk 0:01:02]} 22. Bxd4 {[%clk 0:01:20]}  b5 {[%clk 0:00:53]} 23. cxb5 {[%clk 0:01:21]}  axb5 {[%clk 0:00:53]} 24. Rc1 {[%clk 0:00:48]}  Nxg4 {[%clk 0:00:46]} 25. hxg4 {[%clk 0:00:48]}  Ne5 {[%clk 0:00:47]} 26. f3 {[%clk 0:00:34]}  Nd3 {[%clk 0:00:44]} 27. Rxc8 {[%clk 0:00:34]}  Rxc8 {[%clk 0:00:45]} 28. Rd1 {[%clk 0:00:34]}  Nb4 {[%clk 0:00:35]} 29. Bf1 {[%clk 0:00:30]}  Nxa2 {[%clk 0:00:23]} 30. Bxb5 {[%clk 0:00:30]}  Nc3 {[%clk 0:00:23]} 31. Bxc3 {[%clk 0:00:28]}  Rxc3 {[%clk 0:00:23]} 32. Rd3 {[%clk 0:00:23]}  Rc2 {[%clk 0:00:20]} 33. Ng3 {[%clk 0:00:18]}  d5 {[%clk 0:00:20]} 34. exd5 {[%clk 0:00:15]}  Bxd5 {[%clk 0:00:20]} 35. Ne4 {[%clk 0:00:13]}  Rb2 {[%clk 0:00:16]} 36. Bc4 {[%clk 0:00:13]}  Bxe4 {[%clk 0:00:16]} 37. fxe4 {[%clk 0:00:12]}  g6 {[%clk 0:00:16]} 38. Rd7 {[%clk 0:00:10]}  Bc5+ {[%clk 0:00:14]} 39. Kf1 {[%clk 0:00:10]}  Be3 {[%clk 0:00:14]} 40. Rd8+ {[%clk 0:00:08]}  Kg7 {[%clk 0:00:14]} 41. Rd7 {[%clk 0:00:09]}  Kf8 {[%clk 0:00:12]} 42. Rd8+ {[%clk 0:00:09]}  Ke7 {[%clk 0:00:12]} 43. Rh8 {[%clk 0:00:09]}  Bxg5 {[%clk 0:00:10]} 44. Rxh7 {[%clk 0:00:09]}  Be3 {[%clk 0:00:07]} 45. Rh3 {[%clk 0:00:09]}  Bd4 {[%clk 0:00:07]} 46. Rf3 {[%clk 0:00:09]}  Rd2 {[%clk 0:00:05]} 47. Ke1 {[%clk 0:00:09]}  Rg2 {[%clk 0:00:05]} 48. Be2 {[%clk 0:00:07]}  Be5 {[%clk 0:00:04]} 49. Rd3 {[%clk 0:00:06]}  Kf6 {[%clk 0:00:04]} 50. Rf3+ {[%clk 0:00:06]}  Kg7 {[%clk 0:00:04]} 51. Rd3 {[%clk 0:00:07]}  Rg3 {[%clk 0:00:04]} 52. Rxg3 {[%clk 0:00:06]}  Bxg3+ {[%clk 0:00:05]} 53. Kd2 {[%clk 0:00:07]}  Bd6 {[%clk 0:00:06]} 54. Kd3 {[%clk 0:00:08]}  Kf6 {[%clk 0:00:05]} 55. Ke3 {[%clk 0:00:07]}  Ke5 {[%clk 0:00:06]} 56. Kf3 {[%clk 0:00:08]}  Bc5 {[%clk 0:00:06]} 57. Bc4 {[%clk 0:00:08]}  Kd4 {[%clk 0:00:06]} 58. Bb5 {[%clk 0:00:07]}  Bd6 {[%clk 0:00:07]} 59. Be8 {[%clk 0:00:08]}  f5 {[%clk 0:00:06]} 60. Bxg6 {[%clk 0:00:06]}  fxg4+ {[%clk 0:00:07]} 61. Kxg4 {[%clk 0:00:06]}  e5 {[%clk 0:00:06]} 62. Kf5 {[%clk 0:00:06]}  Bb4 {[%clk 0:00:06]} 63. Bf7 {[%clk 0:00:07]}  Bc3 {[%clk 0:00:07]} 64. Bc4 {[%clk 0:00:08]}  Kc5 {[%clk 0:00:07]} 65. Be6 {[%clk 0:00:09]}  Bd4 {[%clk 0:00:08]} 66. Bc4 {[%clk 0:00:10]}  Kb4 {[%clk 0:00:09]} 67. Be6 {[%clk 0:00:10]}  Bc3 {[%clk 0:00:10]} 68. Bc4 {[%clk 0:00:11]}  Bd4 {[%clk 0:00:11]} 69. Be6 {[%clk 0:00:12]}  Bc3 {[%clk 0:00:11]} 70. Bc4 {[%clk 0:00:13]}  Bd4 {[%clk 0:00:12]} 1/2-1/2


[Site "https://www.chess.com"]

[Event "Titled Tuesday Blitz January 17 Late 2023"]
[White "Fiorito, Joaquin"]
[Black "Mirzoev, Azer"]
[WhiteFideId "180173"]
[BlackFideId "13400304"]
[WhiteElo "2405"]
[BlackElo "2416"]
[Result "1-0"]
[Round "11"]
[TimeControl "180+2"]
[Date "2023.01.17"]
[WhiteClock "0:00:12"]
[BlackClock "0:00:01"]

1. d4 {[%clk 0:03:00]}  d5 {[%clk 0:02:59]} 2. Nc3 {[%clk 0:03:00]}  c6 {[%clk 0:02:59]} 3. Bf4 {[%clk 0:03:01]}  Qb6 {[%clk 0:02:59]} 4. Rb1 {[%clk 0:03:01]}  Bf5 {[%clk 0:02:58]} 5. e3 {[%clk 0:03:01]}  Nf6 {[%clk 0:02:57]} 6. Bd3 {[%clk 0:03:01]}  Bg6 {[%clk 0:02:57]} 7. Nf3 {[%clk 0:03:01]}  Nbd7 {[%clk 0:02:57]} 8. O-O {[%clk 0:03:01]}  e6 {[%clk 0:02:57]} 9. a3 {[%clk 0:03:01]}  Be7 {[%clk 0:02:56]} 10. b4 {[%clk 0:03:01]}  O-O {[%clk 0:02:55]} 11. Na4 {[%clk 0:02:59]}  Qd8 {[%clk 0:02:52]} 12. h3 {[%clk 0:02:54]}  Ne4 {[%clk 0:02:41]} 13. Ne5 {[%clk 0:02:35]}  Nxe5 {[%clk 0:02:36]} 14. Bxe5 {[%clk 0:02:33]}  a5 {[%clk 0:02:23]} 15. b5 {[%clk 0:02:29]}  Bxa3 {[%clk 0:02:19]} 16. c3 {[%clk 0:02:17]}  Bd6 {[%clk 0:02:13]} 17. Bxd6 {[%clk 0:02:06]}  Qxd6 {[%clk 0:02:12]} 18. bxc6 {[%clk 0:02:04]}  bxc6 {[%clk 0:02:08]} 19. Qc2 {[%clk 0:01:51]}  Rab8 {[%clk 0:01:57]} 20. c4 {[%clk 0:01:44]}  h6 {[%clk 0:01:27]} 21. c5 {[%clk 0:01:43]}  Qe7 {[%clk 0:01:26]} 22. Nb6 {[%clk 0:01:38]}  e5 {[%clk 0:01:23]} 23. Ra1 {[%clk 0:01:37]}  exd4 {[%clk 0:01:11]} 24. exd4 {[%clk 0:01:38]}  Rfe8 {[%clk 0:01:09]} 25. Rxa5 {[%clk 0:01:25]}  Rbd8 {[%clk 0:01:08]} 26. Raa1 {[%clk 0:01:16]}  Qf6 {[%clk 0:01:07]} 27. Qb2 {[%clk 0:01:14]}  Re7 {[%clk 0:01:02]} 28. Bxe4 {[%clk 0:00:45]}  Bxe4 {[%clk 0:00:56]} 29. f3 {[%clk 0:00:43]}  Bd3 {[%clk 0:00:47]} 30. Rfe1 {[%clk 0:00:43]}  Rde8 {[%clk 0:00:46]} 31. Qc3 {[%clk 0:00:40]}  Rxe1+ {[%clk 0:00:43]} 32. Rxe1 {[%clk 0:00:41]}  Rxe1+ {[%clk 0:00:43]} 33. Qxe1 {[%clk 0:00:42]}  Qxd4+ {[%clk 0:00:43]} 34. Qf2 {[%clk 0:00:42]}  Qa1+ {[%clk 0:00:39]} 35. Kh2 {[%clk 0:00:41]}  Qe5+ {[%clk 0:00:38]} 36. Kg1 {[%clk 0:00:41]}  d4 {[%clk 0:00:36]} 37. Nd7 {[%clk 0:00:35]}  Qd5 {[%clk 0:00:35]} 38. Qd2 {[%clk 0:00:22]}  Qxd7 {[%clk 0:00:32]} 39. Qxd3 {[%clk 0:00:22]}  Qd5 {[%clk 0:00:32]} 40. Qc2 {[%clk 0:00:17]}  d3 {[%clk 0:00:27]} 41. Qd2 {[%clk 0:00:17]}  Qxc5+ {[%clk 0:00:27]} 42. Kh2 {[%clk 0:00:17]}  Qe5+ {[%clk 0:00:26]} 43. Kg1 {[%clk 0:00:16]}  Qd4+ {[%clk 0:00:26]} 44. Kf1 {[%clk 0:00:16]}  c5 {[%clk 0:00:26]} 45. Qa5 {[%clk 0:00:15]}  g6 {[%clk 0:00:21]} 46. Ke1 {[%clk 0:00:14]}  Kg7 {[%clk 0:00:19]} 47. Kd2 {[%clk 0:00:14]}  c4 {[%clk 0:00:14]} 48. g4 {[%clk 0:00:12]}  g5 {[%clk 0:00:13]} 49. Qf5 {[%clk 0:00:11]}  Qf4+ {[%clk 0:00:09]} 50. Qxf4 {[%clk 0:00:11]}  gxf4 {[%clk 0:00:01]} 51. h4 {[%clk 0:00:12]} 1-0


[Site "https://www.chess.com"]

[Event "Titled Tuesday Blitz January 17 Late 2023"]
[White "Klose, Eli"]
[Black "Lopez Gracia, Fernando"]
[WhiteFideId "16242955"]
[BlackFideId "2207184"]
[WhiteElo "1519"]
[BlackElo "2255"]
[Result "0-1"]
[Round "11"]
[TimeControl "180+2"]
[Date "2023.01.17"]
[WhiteClock "0:00:04"]
[BlackClock "0:00:15"]

1. e4 {[%clk 0:03:00]}  e5 {[%clk 0:02:59]} 2. Nf3 {[%clk 0:03:00]}  Nc6 {[%clk 0:02:59]} 3. d4 {[%clk 0:03:01]}  exd4 {[%clk 0:02:59]} 4. Bc4 {[%clk 0:03:01]}  Nf6 {[%clk 0:02:59]} 5. O-O {[%clk 0:03:00]}  Nxe4 {[%clk 0:02:59]} 6. Re1 {[%clk 0:03:01]}  d5 {[%clk 0:02:59]} 7. Bxd5 {[%clk 0:03:01]}  Qxd5 {[%clk 0:03:00]} 8. Nc3 {[%clk 0:03:02]}  Qh5 {[%clk 0:03:01]} 9. Nxe4 {[%clk 0:02:56]}  Be6 {[%clk 0:03:01]} 10. Bg5 {[%clk 0:02:53]}  Bd6 {[%clk 0:03:01]} 11. Nxd6+ {[%clk 0:02:51]}  cxd6 {[%clk 0:03:01]} 12. Bf4 {[%clk 0:02:51]}  Qd5 {[%clk 0:03:01]} 13. c3 {[%clk 0:02:48]}  Qf5 {[%clk 0:03:02]} 14. cxd4 {[%clk 0:02:42]}  Qxf4 {[%clk 0:02:59]} 15. d5 {[%clk 0:02:42]}  O-O {[%clk 0:02:53]} 16. dxe6 {[%clk 0:02:42]}  fxe6 {[%clk 0:02:54]} 17. Rxe6 {[%clk 0:02:42]}  Ne5 {[%clk 0:02:54]} 18. Qb3 {[%clk 0:01:49]}  Nxf3+ {[%clk 0:02:47]} 19. Qxf3 {[%clk 0:01:39]}  Qxf3 {[%clk 0:02:25]} 20. gxf3 {[%clk 0:01:38]}  Rxf3 {[%clk 0:02:26]} 21. Rxd6 {[%clk 0:01:38]}  Raf8 {[%clk 0:02:26]} 22. Rd2 {[%clk 0:01:37]}  h6 {[%clk 0:02:13]} 23. Rc1 {[%clk 0:01:36]}  R8f7 {[%clk 0:02:11]} 24. Rc5 {[%clk 0:01:26]}  R3f5 {[%clk 0:02:10]} 25. Rd8+ {[%clk 0:01:11]}  Rf8 {[%clk 0:01:59]} 26. Rcc8 {[%clk 0:00:59]}  Rxd8 {[%clk 0:01:57]} 27. Rxd8+ {[%clk 0:00:59]}  Rf8 {[%clk 0:01:58]} 28. Rd7 {[%clk 0:00:59]}  Rf7 {[%clk 0:01:58]} 29. Rd8+ {[%clk 0:00:55]}  Rf8 {[%clk 0:01:57]} 30. Rd4 {[%clk 0:00:54]}  Rf5 {[%clk 0:01:56]} 31. Kg2 {[%clk 0:00:50]}  Ra5 {[%clk 0:01:54]} 32. Rd8+ {[%clk 0:00:40]}  Kh7 {[%clk 0:01:54]} 33. a3 {[%clk 0:00:38]}  Rb5 {[%clk 0:01:54]} 34. b4 {[%clk 0:00:34]}  a5 {[%clk 0:01:53]} 35. Rd4 {[%clk 0:00:33]}  axb4 {[%clk 0:01:50]} 36. axb4 {[%clk 0:00:32]}  Rf5 {[%clk 0:01:47]} 37. f4 {[%clk 0:00:23]}  Rf6 {[%clk 0:01:39]} 38. Kf3 {[%clk 0:00:22]}  Rc6 {[%clk 0:01:36]} 39. Ke4 {[%clk 0:00:19]}  Kg6 {[%clk 0:01:31]} 40. Kd5 {[%clk 0:00:18]}  Rc2 {[%clk 0:01:28]} 41. h3 {[%clk 0:00:12]}  Kf5 {[%clk 0:01:28]} 42. Kd6 {[%clk 0:00:09]}  Rc8 {[%clk 0:01:26]} 43. Rd5+ {[%clk 0:00:08]}  Kxf4 {[%clk 0:01:15]} 44. Rb5 {[%clk 0:00:09]}  Rd8+ {[%clk 0:01:09]} 45. Ke7 {[%clk 0:00:07]}  Rd3 {[%clk 0:01:07]} 46. Rxb7 {[%clk 0:00:07]}  Rxh3 {[%clk 0:01:08]} 47. b5 {[%clk 0:00:05]}  g5 {[%clk 0:01:08]} 48. Kd6 {[%clk 0:00:02]}  Rd3+ {[%clk 0:01:07]} 49. Kc6 {[%clk 0:00:02]}  Rc3+ {[%clk 0:01:04]} 50. Kd5 {[%clk 0:00:02]}  g4 {[%clk 0:01:03]} 51. Rf7+ {[%clk 0:00:02]}  Kg5 {[%clk 0:01:02]} 52. b6 {[%clk 0:00:03]}  Rb3 {[%clk 0:01:00]} 53. Kc6 {[%clk 0:00:04]}  g3 {[%clk 0:00:58]} 54. Rd7 {[%clk 0:00:04]}  Kg4 {[%clk 0:00:53]} 55. b7 {[%clk 0:00:03]}  g2 {[%clk 0:00:45]} 56. Rg7+ {[%clk 0:00:03]}  Kf3 {[%clk 0:00:40]} 57. Rf7+ {[%clk 0:00:03]}  Kg3 {[%clk 0:00:39]} 58. Rg7+ {[%clk 0:00:04]}  Kh2 {[%clk 0:00:38]} 59. Rh7 {[%clk 0:00:04]}  Rc3+ {[%clk 0:00:25]} 60. Kb6 {[%clk 0:00:04]}  g1=Q+ {[%clk 0:00:22]} 61. Kb5 {[%clk 0:00:04]}  Rb3+ {[%clk 0:00:21]} 62. Ka4 {[%clk 0:00:03]}  Rxb7 {[%clk 0:00:17]} 63. Rxb7 {[%clk 0:00:03]}  Qa1+ {[%clk 0:00:15]} 64. Kb5 {[%clk 0:00:03]}  Qb2+ {[%clk 0:00:15]} 65. Kc6 {[%clk 0:00:03]}  Qxb7+ {[%clk 0:00:15]} 66. Kxb7 {[%clk 0:00:04]}  Kg3 {[%clk 0:00:15]} 0-1


[Site "https://www.chess.com"]